Workbook

Sheet Escalators
A1: IT Capex Expenditure Template | H1: Menu
A2: Escalators
B4: 2006 | C4: 2007 | D4: 2008 | E4: 2009 | F4: 2010 | G4: 2011 | H4: 2012 | I4: 2013 | J4: 2014 | K4: 2015 | L4: 2016 | M4: 2017 | N4: 2018 | O4: 2019 | P4: 2020
A6: INFLATION ESCALATION
A7: CPI | B7: 149.8 | C7: 155.7 | D7: 158.6 | E7: 166.5 | F7: 168.6 | G7: 173.3 | H7: 179.4 | I7: 182.9951904 | J7: 186.9498998 | K7: 193.7346069 | L7: 198.7717066 | M7: 203.939771 | N7: 209.2422051 | O7: 214.6825024 | P7: 220.2642474
H8: 99.8 | I8: 101.8 | J8: 104 | K8: 107.7743242 | L8: =K8*(1+L9) -> 110.4686823 | M8: 113.2303994 | N8: 116.0611594 | O8: 118.9626883 | P8: 121.9367556
A9: Inflation | L9: 0.025 | M9: 0.025 | N9: 0.025 | O9: 0.025 | P9: 0.025
A10: Real cost year | B10: 2015
A11: ="Conversion from nominal to real $"&B10 -> Conversion from nominal to real $2015 | B11: =HLOOKUP($B$10,$B$4:$P$7,4)/B7 -> 1.29328843 | C11: =HLOOKUP($B$10,$B$4:$P$7,4)/C7 -> 1.244281354 | D11: 1.221529678 | E11: 1.163571212 | F11: 1.142475948 | G11: 1.111101953 | H11: 1.082968223 | I11: 1.056818344 | J11: 1.033765005 | K11: 1.012422837 | L11: =HLOOKUP($B$10,$B$4:$P$8,5)/L8 -> 0.9756097561 | M11: 0.9518143962 | N11: 0.9285994109 | O11: 0.9059506448 | P11: 0.8838542876

Sheet Assumptions
A1: =Escalators!A1 -> IT Capex Expenditure Template | E1: Menu
A2: Assumptions
A4: LABOUR RATES
A6: Labour Rate Assumption 2016 - 2020
C8: PCN Mhr Rate ($/Mhr) | D8: 83
C9: CPN Mhr Rate ($/Mhr) | D9: 75
C10: NS Mhr Rate ($/Mhr) | D10: 90
C11: IT Internal Mhr Rate ($/Mhr) | D11: 90
C12: Corporate Mhr Rate ($/Mhr) | D12: 98
C13: CSG Mhr Rate ($/Mhr) | D13: 57

Sheet Export PAL
A1: =Escalators!A1 -> IT Capex Expenditure Template
A2: Export
A4: EXPORT
A6: POWERCOR | D6: 2011 | E6: 2012 | F6: 2013 | G6: 2014 | H6: 2015 | I6: 2016 | J6: 2017 | K6: 2018 | L6: 2019 | M6: 2020
D7: $'000 nom | E7: $'000 nom | F7: $'000 nom | G7: $'000 nom | H7: $'000, $2015 | I7: $'000, $2015 | J7: $'000, $2015 | K7: $'000, $2015 | L7: $'000, $2015 | M7: $'000, $2015
C8: Description | D8: Actual | E8: Actual | F8: F'cast | G8: F'cast | H8: F'cast | I8: F'cast | J8: F'cast | K8: F'cast | L8: F'cast | M8: F'cast
B9: 200 | C9: Computers | I9: =SUM(PAL!B37:D37) -> 39809.12827 | J9: =SUM(PAL!E37:G37) -> 39576.74858 | K9: =SUM(PAL!H37:J37) -> 33217.34411 | L9: =SUM(PAL!K37:M37) -> 24573.87095 | M9: =SUM(PAL!N37:P37) -> 18692.25399
B10: 205 | C10: IT Metering Data Services | I10: =SUM(PAL!B86:D86) -> 664.1939988 | J10: =SUM(PAL!E86:G86) -> 698.9231103 | K10: =SUM(PAL!H86:J86) -> 546.0579999 | L10: =SUM(PAL!K86:M86) -> 330.3978384 | M10: =SUM(PAL!N86:P86) -> 1795.665935
A12: POWERCOR - LABUOR, MATERIAL AND CONTRACT SPLIT | D12: 2011 | E12: 2012 | F12: 2013 | G12: 2014 | H12: 2015 | I12: 2016 | J12: 2017 | K12: 2018 | L12: 2019 | M12: 2020
D13: % | E13: % | F13: % | G13: % | H13: % | I13: % | J13: % | K13: % | L13: % | M13: %
C14: Description | D14: Actual | E14: Actual | F14: F'cast | G14: F'cast | H14: F'cast | I14: F'cast | J14: F'cast | K14: F'cast | L14: F'cast | M14: F'cast
B15: 200 | C15: Labour | I15: =PAL!D$37/$I$9 -> 0.2095273789 | J15: =PAL!G$37/$J$9 -> 0.2016157244 | K15: =PAL!J$37/$K$9 -> 0.1815793765 | L15: =PAL!M$37/$L$9 -> 0.2152726449 | M15: =PAL!P$37/$M$9 -> 0.2436477607
B16: 200 | C16: Material | I16: =PAL!B$37/$I$9 -> 0.3379763342 | J16: =PAL!E$37/$J$9 -> 0.2861447097 | K16: =PAL!H$37/$K$9 -> 0.4195569676 | L16: =PAL!K$37/$L$9 -> 0.3241637215 | M16: =PAL!N$37/$M$9 -> 0.2539477977
B17: 200 | C17: Contract | I17: =PAL!C$37/$I$9 -> 0.4524962869 | J17: =PAL!F$37/$J$9 -> 0.5122395659 | K17: =PAL!I$37/$K$9 -> 0.398863656 | L17: =PAL!L$37/$L$9 -> 0.4605636336 | M17: =PAL!O$37/$M$9 -> 0.5024044416
B18: 205 | C18: Labour | I18: =PAL!D$86/$I$10 -> 0.2566794061 | J18: =PAL!G$86/$J$10 -> 0.1540877287 | K18: =PAL!J$86/$K$10 -> 0.2555991257 | L18: =PAL!M$86/$L$10 -> 0.2551075743 | M18: =PAL!P$86/$M$10 -> 0.1161323004
B19: 205 | C19: Material | I19: =PAL!B$86/$I$10 -> 0.1489985863 | J19: =PAL!E$86/$J$10 -> 0.3113219745 | K19: =PAL!H$86/$K$10 -> 0.09666313289 | L19: =PAL!K$86/$L$10 -> 0.09640561978 | M19: =PAL!N$86/$M$10 -> 0.4992844811
B20: 205 | C20: Contract | I20: =PAL!C$86/$I$10 -> 0.5943220076 | J20: =PAL!F$86/$J$10 -> 0.5345902967 | K20: =PAL!I$86/$K$10 -> 0.6477377414 | L20: =PAL!L$86/$L$10 -> 0.648486806 | M20: =PAL!O$86/$M$10 -> 0.3845832186

Sheet PAL
A1: =Escalators!A1 -> IT Capex Expenditure Template
A2: Powercor Summary
B4: 2016 | E4: 2017 | H4: 2018 | K4: 2019 | N4: 2020
A5: Forecast - No Escalation
A6: IT Category | B6: 2016 PAL SCS | E6: 2017 PAL SCS | H6: 2018 PAL SCS | K6: 2019 PAL SCS | N6: 2020 PAL SCS
B7: Material | C7: Contract | D7: Labour | E7: Material | F7: Contract | G7: Labour | H7: Material | I7: Contract | J7: Labour | K7: Material | L7: Contract | M7: Labour | N7: Material | O7: Contract | P7: Labour
A8: AMI | B8: 0 | C8: 0 | D8: 0 | E8: 0 | F8: 0 | G8: 0 | H8: 0 | I8: 0 | J8: 0 | K8: 0 | L8: 0 | M8: 0 | N8: 0 | O8: 0 | P8: 0
A9: Compliance | B9: 562.4941844 | C9: 1311.62681 | D9: 542.4635838 | E9: 32.62727288 | F9: 732.2923853 | G9: 289.1690984 | H9: 0 | I9: 709.8448216 | J9: 270.1871384 | K9: 32.62727288 | L9: 757.8721673 | M9: 295.6950751 | N9: 0 | O9: 738.0347853 | P9: 277.4959738
A10: Compliance - metering contestability | B10: 0 | C10: 1397 | D10: 987 | E10: 0 | F10: 3244 | G10: 1359 | H10: 0 | I10: 730 | J10: 452 | K10: 0 | L10: 0 | M10: 0 | N10: 0 | O10: 0 | P10: 0
A11: Compliance - RIN Reporting | B11: 689.114 | C11: 1450.934426 | D11: 1878.985878 | E11: 0 | F11: 700.4155742 | G11: 574.4812466 | H11: 0 | I11: 0 | J11: 0 | K11: 0 | L11: 0 | M11: 0 | N11: 0 | O11: 0 | P11: 0
A12: Currency | B12: 2896.846287 | C12: 2524.873488 | D12: 923.7747849 | E12: 1268.948934 | F12: 2637.421557 | G12: 1038.358522 | H12: 2396.587018 | I12: 3176.837428 | J12: 1165.347406 | K12: 2160.334989 | L12: 2786.589945 | M12: 1015.886227 | N12: 1803.66266 | O12: 3958.795308 | P12: 1494.164069
A13: Currency - IEE / MTS Upgrade | B13: 0 | C13: 0 | D13: 0 | E13: 0 | F13: 0 | G13: 0 | H13: 0 | I13: 1879.330918 | J13: 730.8339462 | K13: 0 | L13: 0 | M13: 0 | N13: 0 | O13: 0 | P13: 0
A14: Currency - Refresh Telephony Solution | B14: 0 | C14: 0 | D14: 0 | E14: 130.5090915 | F14: 92.00890951 | G14: 46.76923803 | H14: 587.2909118 | I14: 130.5090915 | J14: 111.5566917 | K14: 587.2909118 | L14: 512.2481841 | M14: 244.9389409 | N14: 130.5090915 | O14: 92.66145497 | P14: 46.83318749
A15: Currency - USB Upgrade | B15: 0 | C15: 886.1567313 | D15: 279.9265359 | E15: 0 | F15: 0 | G15: 0 | H15: 0 | I15: 0 | J15: 0 | K15: 0 | L15: 495.9345477 | M15: 156.6036665 | N15: 0 | O15: 0 | P15: 0
A16: Customer Engagement | B16: 97.88181863 | C16: 222.518001 | D16: 91.5376477 | E16: 0 | F16: 32.62727288 | G16: 3.261422197 | H16: 195.7636373 | I16: 164.0195086 | J16: 133.4736055 | K16: 65.25454575 | L16: 685.1727304 | M16: 207.6786018 | N16: 65.25454575 | O16: 163.1363644 | P16: 68.17650727
A17: Customer Engagement - Billing / CRM Implementation | B17: 5811.279824 | C17: 7355.103159 | D17: 2332.884218 | E17: 2642.809103 | F17: 7170.024477 | G17: 1897.079299 | H17: 0 | I17: 0 | J17: 0 | K17: 0 | L17: 0 | M17: 0 | N17: 0 | O17: 0 | P17: 0
A18: Device Replacement | B18: 745.9260176 | C18: 0 | D18: 0 | E18: 535.6771762 | F18: 0 | G18: 0 | H18: 732.6519379 | I18: 0 | J18: 0 | K18: 370.8383208 | L18: 0 | M18: 0 | N18: 400.3692655 | O18: 0 | P18: 0
A19: Device Replacement - mobile devices | B19: 0 | C19: 0 | D19: 0 | E19: 0 | F19: 0 | G19: 0 | H19: 0 | I19: 0 | J19: 0 | K19: 0 | L19: 0 | M19: 0 | N19: 0 | O19: 0 | P19: 0
A20: Infrastructure | B20: 140.7242991 | C20: 70.6054185 | D20: 18.12732128 | E20: 140.7242991 | F20: 68.64778213 | G20: 17.48776148 | H20: 783.054549 | I20: 94.77465818 | J20: 61.30671099 | K20: 130.5090915 | L20: 35.03239882 | M20: 9.128849932 | N20: 140.7242991 | O20: 68.64778213 | P20: 17.22641702
A21: Infrastructure - Data Warehouse Hardware Refresh | B21: 0 | C21: 0 | D21: 0 | E21: 2055.518191 | F21: 173.5770917 | G21: 54.81362267 | H21: 0 | I21: 0 | J21: 0 | K21: 0 | L21: 0 | M21: 0 | N21: 0 | O21: 0 | P21: 0
A22: Infrastructure - Network Infrastructure Refresh | B22: 234.5226188 | C22: 403.2000729 | D22: 86.13619615 | E22: 234.5226188 | F22: 403.2000729 | G22: 86.13619615 | H22: 326.2727288 | I22: 10.56583986 | J22: 19.57616796 | K22: 522.036366 | L22: 10.56583986 | M22: 30.01761308 | N22: 65.25454575 | O22: 10.56583986 | P22: 47.63575314
A23: Infrastructure - SAN Storage Growth | B23: 77.00036399 | C23: 19.57636373 | D23: 5.226889115 | E23: 480.2734567 | F23: 44.37309111 | G23: 10.45377823 | H23: 486.7989113 | I23: 44.37309111 | J23: 10.45377823 | K23: 177.4923644 | L23: 44.37309111 | M23: 10.45377823 | N23: 182.7127281 | O23: 44.37309111 | P23: 10.45377823
A24: Infrastructure - Server Refresh | B24: 401.3154564 | C24: 58.72909118 | D24: 17.61814006 | E24: 241.4418193 | F24: 34.58490925 | G24: 15.03464734 | H24: 1461.701825 | I24: 185.9754554 | J24: 71.12092941 | K24: 619.9181846 | L24: 47.6358184 | M24: 15.68066734 | N24: 251.2300011 | O24: 43.72054565 | P24: 15.03464734
A25: Infrastructure - Storage Infrastructure Refresh | B25: 0 | C25: 0 | D25: 0 | E25: 753.6900034 | F25: 9.788181863 | G25: 20.90755646 | H25: 2634.978557 | I25: 65.25454575 | J25: 52.21016206 | K25: 0 | L25: 0 | M25: 0 | N25: 0 | O25: 0 | P25: 0
A26: Security | B26: 730.8509124 | C26: 685.6388343 | D26: 161.3138515 | E26: 582.6298728 | F26: 727.5881851 | G26: 147.7807579 | H26: 1113.988317 | I26: 804.0292244 | J26: 185.6215893 | K26: 1060.176096 | L26: 943.8603939 | M26: 211.9698834 | N26: 838.9870168 | O26: 809.1563673 | P26: 181.3380479
A27: Smarter Networks - Asset Management Data Analytics | B27: 354.3479928 | C27: 453.352822 | D27: 295.803964 | E27: 0 | F27: 497.1644078 | G27: 278.4093753 | H27: 566.9567885 | I27: 660.3345715 | J27: 469.4599226 | K27: 566.9567885 | L27: 660.3345715 | M27: 469.4599226 | N27: 0 | O27: 562.7046126 | P27: 373.8555585
A28: Smarter Networks - DMS / OMS Integration | B28: 0 | C28: 0 | D28: 0 | E28: 0 | F28: 285.7462214 | G28: 119.7276668 | H28: 1240.217975 | I28: 1682.727748 | J28: 704.4537314 | K28: 779.5655842 | L28: 1052.271799 | M28: 440.3465498 | N28: 0 | O28: 0 | P28: 0
A29: Smarter Networks - DMS Low Voltage Modelling | B29: 0 | C29: 0 | D29: 0 | E29: 0 | F29: 0 | G29: 0 | H29: 0 | I29: 0 | J29: 0 | K29: 0 | L29: 941.1482689 | M29: 759.5712861 | N29: 0 | O29: 941.1482689 | P29: 762.5151001
A30: Smarter Networks - DMS Mobility Switching Integration | B30: 0 | C30: 0 | D30: 0 | E30: 708.6959856 | F30: 721.1690349 | G30: 666.7000789 | H30: 0 | I30: 0 | J30: 0 | K30: 0 | L30: 0 | M30: 0 | N30: 0 | O30: 0 | P30: 0
A31: Smarter Networks - Lidar Data Management and Application | B31: 0 | C31: 0 | D31: 0 | E31: 832.7177831 | F31: 530.671554 | G31: 222.0379958 | H31: 46.06523906 | I31: 874.2473678 | J31: 365.8794687 | K31: 24.8043595 | L31: 434.2889 | M31: 181.7803786 | N31: 0 | O31: 0 | P31: 0
A32: Smarter Networks - Outage Notification System Extension | B32: 109.8478778 | C32: 306.1566658 | D32: 127.8579688 | E32: 0 | F32: 968.9291515 | G32: 405.3225816 | H32: 0 | I32: 253.9966412 | J32: 106.2983739 | K32: 0 | L32: 0 | M32: 0 | N32: 0 | O32: 0 | P32: 0
A33: Smarter Networks - Remote Diagnostics / Asset Condition Alerts | B33: 0 | C33: 0 | D33: 0 | E33: 0 | F33: 0 | G33: 0 | H33: 0 | I33: 0 | J33: 0 | K33: 708.6959856 | L33: 585.6663625 | M33: 526.6599804 | N33: 708.6959856 | O33: 585.6663625 | P33: 528.1318874
A34: Smarter Networks - Smart Network Advanced Analytics | B34: 0 | C34: 0 | D34: 0 | E34: 187.8044362 | F34: 358.3166903 | G34: 154.6208806 | H34: 159.4565968 | I34: 376.3175684 | J34: 162.6225543 | K34: 159.4565968 | L34: 376.3175684 | M34: 162.5694021 | N34: 159.4565968 | O34: 376.3175684 | P34: 162.4999499
A35: Smarter Networks - Smart Network Demand Management | B35: 460.6523906 | C35: 523.3011158 | D35: 403.2221484 | E35: 354.3479928 | F35: 518.7654615 | G35: 391.1787106 | H35: 354.3479928 | I35: 518.7654615 | J35: 391.1787106 | K35: 0 | L35: 503.4576282 | M35: 351.9311269 | N35: 0 | O35: 551.0819984 | P35: 369.4630608
A36: Smarter Networks - Storage Integration to Network Management | B36: 141.7391971 | C36: 344.7097274 | D36: 189.2231747 | E36: 141.7391971 | F36: 321.4644991 | G36: 180.564398 | H36: 850.4351827 | I36: 887.287374 | J36: 568.0037451 | K36: 0 | L36: 445.061079 | M36: 199.7102453 | N36: 0 | O36: 445.061079 | P36: 199.5018886
B37: =SUM(B8:B36) -> 13454.54324 | C37: 18013.48273 | D37: 8341.102303 | E37: 11324.67723 | F37: 20272.77651 | G37: 7979.294833 | H37: 13936.56817 | I37: 13249.19131 | J37: 6031.584633 | K37: 7965.957457 | L37: 11317.83129 | M37: 5290.082195 | N37: 4746.856736 | O37: 9391.071429 | P37: 4554.325827
A39: AMI | B39: =SUM(B8) -> 0 | C39: 0 | D39: 0 | E39: 0 | F39: 0 | G39: 0 | H39: 0 | I39: 0 | J39: 0 | K39: 0 | L39: 0 | M39: 0 | N39: 0 | O39: 0 | P39: 0
A40: Compliance | B40: =SUM(B9:B11) -> 1251.608184 | C40: 4159.561236 | D40: 3408.449462 | E40: 32.62727288 | F40: 4676.70796 | G40: 2222.650345 | H40: 0 | I40: 1439.844822 | J40: 722.1871384 | K40: 32.62727288 | L40: 757.8721673 | M40: 295.6950751 | N40: 0 | O40: 738.0347853 | P40: 277.4959738
A41: Currency | B41: =SUM(B12:B15) -> 2896.846287 | C41: 3411.030219 | D41: 1203.701321 | E41: 1399.458026 | F41: 2729.430467 | G41: 1085.12776 | H41: 2983.877929 | I41: 5186.677437 | J41: 2007.738044 | K41: 2747.625901 | L41: 3794.772676 | M41: 1417.428834 | N41: 1934.171751 | O41: 4051.456763 | P41: 1540.997256
A42: Customer Engagement | B42: =SUM(B16:B17) -> 5909.161643 | C42: 7577.62116 | D42: 2424.421866 | E42: 2642.809103 | F42: 7202.65175 | G42: 1900.340721 | H42: 195.7636373 | I42: 164.0195086 | J42: 133.4736055 | K42: 65.25454575 | L42: 685.1727304 | M42: 207.6786018 | N42: 65.25454575 | O42: 163.1363644 | P42: 68.17650727
A43: Device Replacement | B43: =SUM(B18:B19) -> 745.9260176 | C43: =SUM(C18:C19) -> 0 | D43: 0 | E43: 535.6771762 | F43: 0 | G43: 0 | H43: 732.6519379 | I43: 0 | J43: 0 | K43: 370.8383208 | L43: 0 | M43: 0 | N43: 400.3692655 | O43: 0 | P43: 0
A44: Infrastructure | B44: =SUM(B20:B25) -> 853.5627382 | C44: 552.1109463 | D44: 127.1085466 | E44: 3906.170388 | F44: 734.1711289 | G44: 204.8335623 | H44: 5692.806571 | I44: 400.9435903 | J44: 214.6677486 | K44: 1449.956007 | L44: 137.6071482 | M44: 65.28090859 | N44: 639.9215741 | O44: 167.3072588 | P44: 90.35059574
A45: Security | B45: =SUM(B26) -> 730.8509124 | C45: 685.6388343 | D45: 161.3138515 | E45: 582.6298728 | F45: 727.5881851 | G45: 147.7807579 | H45: 1113.988317 | I45: 804.0292244 | J45: 185.6215893 | K45: 1060.176096 | L45: 943.8603939 | M45: 211.9698834 | N45: 838.9870168 | O45: 809.1563673 | P45: 181.3380479
A46: Smarter Networks | B46: =SUM(B27:B36) -> 1066.587458 | C46: 1627.520331 | D46: 1016.107256 | E46: 2225.305395 | F46: 4202.227021 | G46: 2418.561687 | H46: 3217.479775 | I46: 5253.676733 | J46: 2767.896507 | K46: 2239.479314 | L46: 4998.546178 | M46: 3092.028892 | N46: 868.1525824 | O46: 3461.97989 | P46: 2395.967445
B47: =SUM(B39:B46) -> 13454.54324 | C47: =SUM(C39:C46) -> 18013.48273 | D47: 8341.102303 | E47: 11324.67723 | F47: 20272.77651 | G47: 7979.294833 | H47: 13936.56817 | I47: 13249.19131 | J47: 6031.584633 | K47: 7965.957457 | L47: 11317.83129 | M47: 5290.082195 | N47: 4746.856736 | O47: 9391.071429 | P47: 4554.325827
A50: Recurrent | B50: 10286.22034 | C50: 9044.500327 | D50: 3666.108402 | E50: 8396.528776 | F50: 12550.85893 | G50: 4317.35876 | H50: 13829.83527 | I50: 11860.61484 | J50: 5205.604034 | K50: 7564.863369 | L50: 10538.50509 | M50: 5056.229943 | N50: 4455.896252 | O50: 9697.691988 | P50: 4677.828903
A51: Non-Recurrent | B51: 4248.825767 | C51: 9206.26202 | D51: 3450.621984 | E51: 4994.597455 | F51: 6280.195932 | G51: 3470.973949 | H51: 903.6850102 | I51: 2090.089974 | J51: 1514.017106 | K51: 1185.326859 | L51: 3628.296891 | M51: 2417.962887 | N51: 697.0728728 | O51: 1021.15739 | P51: 848.4509479
A52: Device Replacement | B52: 828.8066862 | C52: 0 | D52: 0 | E52: 595.1968625 | F52: 0 | G52: 0 | H52: 814.0577087 | I52: 0 | J52: 0 | K52: 412.0425786 | L52: 0 | M52: 0 | N52: 444.8547394 | O52: 0 | P52: 0
B53: =SUM(B50:B52)-B37 -> 1909.309551 | C53: =SUM(C50:C52)-C37 -> 237.2796199 | D53: -1224.371918 | E53: 2661.64586 | F53: -1441.721648 | G53: -190.9621245 | H53: 1611.009821 | I53: 701.513498 | J53: 688.0365078 | K53: 1196.275349 | L53: 2848.970691 | M53: 2184.110635 | N53: 850.9671282 | O53: 1327.777949 | P53: 971.9540239
A55: IT Category | B55: 2016 PAL AMI (Excl margins) | E55: 2017 PAL AMI (Excl margins) | H55: 2018 PAL AMI (Excl margins) | K55: 2019 PAL AMI (Excl margins) | N55: 2020 PAL AMI (Excl margins)
B56: Material | C56: Contract | D56: Labour | E56: Material | F56: Contract | G56: Labour | H56: Material | I56: Contract | J56: Labour | K56: Material | L56: Contract | M56: Labour | N56: Material | O56: Contract | P56: Labour
A57: AMI | B57: 98.96396687 | C57: 394.7451108 | D57: 170.4849211 | E57: 217.5901227 | F57: 373.6375129 | G57: 107.6954746 | H57: 52.78367701 | I57: 353.7023756 | J57: 139.5719473 | K57: 31.85220838 | L57: 214.2586389 | M57: 84.28699109 | N57: 896.5481345 | O57: 690.5829848 | P57: 208.5348157
A58: Compliance | B58: 0 | C58: 0 | D58: 0 | E58: 0 | F58: 0 | G58: 0 | H58: 0 | I58: 0 | J58: 0 | K58: 0 | L58: 0 | M58: 0 | N58: 0 | O58: 0 | P58: 0
A59: Compliance - metering contestability | B59: 0 | C59: 0 | D59: 0 | E59: 0 | F59: 0 | G59: 0 | H59: 0 | I59: 0 | J59: 0 | K59: 0 | L59: 0 | M59: 0 | N59: 0 | O59: 0 | P59: 0
A60: Compliance - RIN Reporting | B60: 0 | C60: 0 | D60: 0 | E60: 0 | F60: 0 | G60: 0 | H60: 0 | I60: 0 | J60: 0 | K60: 0 | L60: 0 | M60: 0 | N60: 0 | O60: 0 | P60: 0
A61: Currency | B61: 0 | C61: 0 | D61: 0 | E61: 0 | F61: 0 | G61: 0 | H61: 0 | I61: 0 | J61: 0 | K61: 0 | L61: 0 | M61: 0 | N61: 0 | O61: 0 | P61: 0
A62: Currency - IEE / MTS Upgrade | B62: 0 | C62: 0 | D62: 0 | E62: 0 | F62: 0 | G62: 0 | H62: 0 | I62: 0 | J62: 0 | K62: 0 | L62: 0 | M62: 0 | N62: 0 | O62: 0 | P62: 0
A63: Currency - Refresh Telephony Solution | B63: 0 | C63: 0 | D63: 0 | E63: 0 | F63: 0 | G63: 0 | H63: 0 | I63: 0 | J63: 0 | K63: 0 | L63: 0 | M63: 0 | N63: 0 | O63: 0 | P63: 0
A64: Currency - USB Upgrade | B64: 0 | C64: 0 | D64: 0 | E64: 0 | F64: 0 | G64: 0 | H64: 0 | I64: 0 | J64: 0 | K64: 0 | L64: 0 | M64: 0 | N64: 0 | O64: 0 | P64: 0
A65: Customer Engagement | B65: 0 | C65: 0 | D65: 0 | E65: 0 | F65: 0 | G65: 0 | H65: 0 | I65: 0 | J65: 0 | K65: 0 | L65: 0 | M65: 0 | N65: 0 | O65: 0 | P65: 0
A66: Customer Engagement - Billing / CRM Implementation | B66: 0 | C66: 0 | D66: 0 | E66: 0 | F66: 0 | G66: 0 | H66: 0 | I66: 0 | J66: 0 | K66: 0 | L66: 0 | M66: 0 | N66: 0 | O66: 0 | P66: 0
A67: Device Replacement | B67: 0 | C67: 0 | D67: 0 | E67: 0 | F67: 0 | G67: 0 | H67: 0 | I67: 0 | J67: 0 | K67: 0 | L67: 0 | M67: 0 | N67: 0 | O67: 0 | P67: 0
A68: Device Replacement - mobile devices | B68: 0 | C68: 0 | D68: 0 | E68: 0 | F68: 0 | G68: 0 | H68: 0 | I68: 0 | J68: 0 | K68: 0 | L68: 0 | M68: 0 | N68: 0 | O68: 0 | P68: 0
A69: Infrastructure | B69: 0 | C69: 0 | D69: 0 | E69: 0 | F69: 0 | G69: 0 | H69: 0 | I69: 0 | J69: 0 | K69: 0 | L69: 0 | M69: 0 | N69: 0 | O69: 0 | P69: 0
A70: Infrastructure - Data Warehouse Hardware Refresh | B70: 0 | C70: 0 | D70: 0 | E70: 0 | F70: 0 | G70: 0 | H70: 0 | I70: 0 | J70: 0 | K70: 0 | L70: 0 | M70: 0 | N70: 0 | O70: 0 | P70: 0
A71: Infrastructure - Network Infrastructure Refresh | B71: 0 | C71: 0 | D71: 0 | E71: 0 | F71: 0 | G71: 0 | H71: 0 | I71: 0 | J71: 0 | K71: 0 | L71: 0 | M71: 0 | N71: 0 | O71: 0 | P71: 0
A72: Infrastructure - SAN Storage Growth | B72: 0 | C72: 0 | D72: 0 | E72: 0 | F72: 0 | G72: 0 | H72: 0 | I72: 0 | J72: 0 | K72: 0 | L72: 0 | M72: 0 | N72: 0 | O72: 0 | P72: 0
A73: Infrastructure - Server Refresh | B73: 0 | C73: 0 | D73: 0 | E73: 0 | F73: 0 | G73: 0 | H73: 0 | I73: 0 | J73: 0 | K73: 0 | L73: 0 | M73: 0 | N73: 0 | O73: 0 | P73: 0
A74: Infrastructure - Storage Infrastructure Refresh | B74: 0 | C74: 0 | D74: 0 | E74: 0 | F74: 0 | G74: 0 | H74: 0 | I74: 0 | J74: 0 | K74: 0 | L74: 0 | M74: 0 | N74: 0 | O74: 0 | P74: 0
A75: Security | B75: 0 | C75: 0 | D75: 0 | E75: 0 | F75: 0 | G75: 0 | H75: 0 | I75: 0 | J75: 0 | K75: 0 | L75: 0 | M75: 0 | N75: 0 | O75: 0 | P75: 0
A76: Smarter Networks - Asset Management Data Analytics | B76: 0 | C76: 0 | D76: 0 | E76: 0 | F76: 0 | G76: 0 | H76: 0 | I76: 0 | J76: 0 | K76: 0 | L76: 0 | M76: 0 | N76: 0 | O76: 0 | P76: 0
A77: Smarter Networks - DMS / OMS Integration | B77: 0 | C77: 0 | D77: 0 | E77: 0 | F77: 0 | G77: 0 | H77: 0 | I77: 0 | J77: 0 | K77: 0 | L77: 0 | M77: 0 | N77: 0 | O77: 0 | P77: 0
A78: Smarter Networks - DMS Low Voltage Modelling | B78: 0 | C78: 0 | D78: 0 | E78: 0 | F78: 0 | G78: 0 | H78: 0 | I78: 0 | J78: 0 | K78: 0 | L78: 0 | M78: 0 | N78: 0 | O78: 0 | P78: 0
A79: Smarter Networks - DMS Mobility Switching Integration | B79: 0 | C79: 0 | D79: 0 | E79: 0 | F79: 0 | G79: 0 | H79: 0 | I79: 0 | J79: 0 | K79: 0 | L79: 0 | M79: 0 | N79: 0 | O79: 0 | P79: 0
A80: Smarter Networks - Lidar Data Management and Application | B80: 0 | C80: 0 | D80: 0 | E80: 0 | F80: 0 | G80: 0 | H80: 0 | I80: 0 | J80: 0 | K80: 0 | L80: 0 | M80: 0 | N80: 0 | O80: 0 | P80: 0
A81: Smarter Networks - Outage Notification System Extension | B81: 0 | C81: 0 | D81: 0 | E81: 0 | F81: 0 | G81: 0 | H81: 0 | I81: 0 | J81: 0 | K81: 0 | L81: 0 | M81: 0 | N81: 0 | O81: 0 | P81: 0
A82: Smarter Networks - Remote Diagnostics / Asset Condition Alerts | B82: 0 | C82: 0 | D82: 0 | E82: 0 | F82: 0 | G82: 0 | H82: 0 | I82: 0 | J82: 0 | K82: 0 | L82: 0 | M82: 0 | N82: 0 | O82: 0 | P82: 0
A83: Smarter Networks - Smart Network Advanced Analytics | B83: 0 | C83: 0 | D83: 0 | E83: 0 | F83: 0 | G83: 0 | H83: 0 | I83: 0 | J83: 0 | K83: 0 | L83: 0 | M83: 0 | N83: 0 | O83: 0 | P83: 0
A84: Smarter Networks - Smart Network Demand Management | B84: 0 | C84: 0 | D84: 0 | E84: 0 | F84: 0 | G84: 0 | H84: 0 | I84: 0 | J84: 0 | K84: 0 | L84: 0 | M84: 0 | N84: 0 | O84: 0 | P84: 0
A85: Smarter Networks - Storage Integration to Network Management | B85: 0 | C85: 0 | D85: 0 | E85: 0 | F85: 0 | G85: 0 | H85: 0 | I85: 0 | J85: 0 | K85: 0 | L85: 0 | M85: 0 | N85: 0 | O85: 0 | P85: 0
B86: =SUM(B57:B85) -> 98.96396687 | C86: 394.7451108 | D86: 170.4849211 | E86: 217.5901227 | F86: 373.6375129 | G86: 107.6954746 | H86: 52.78367701 | I86: 353.7023756 | J86: 139.5719473 | K86: 31.85220838 | L86: 214.2586389 | M86: 84.28699109 | N86: 896.5481345 | O86: 690.5829848 | P86: 208.5348157
A88: AMI | B88: =SUM(B57) -> 98.96396687 | C88: 394.7451108 | D88: 170.4849211 | E88: 217.5901227 | F88: 373.6375129 | G88: 107.6954746 | H88: 52.78367701 | I88: 353.7023756 | J88: 139.5719473 | K88: 31.85220838 | L88: 214.2586389 | M88: 84.28699109 | N88: 896.5481345 | O88: 690.5829848 | P88: 208.5348157
A89: Compliance | B89: =SUM(B58:B60) -> 0 | C89: 0 | D89: 0 | E89: 0 | F89: 0 | G89: 0 | H89: 0 | I89: 0 | J89: 0 | K89: 0 | L89: 0 | M89: 0 | N89: 0 | O89: 0 | P89: 0
A90: Currency | B90: =SUM(B61:B64) -> 0 | C90: 0 | D90: 0 | E90: 0 | F90: 0 | G90: 0 | H90: 0 | I90: 0 | J90: 0 | K90: 0 | L90: 0 | M90: 0 | N90: 0 | O90: 0 | P90: 0
A91: Customer Engagement | B91: =SUM(B65:B66) -> 0 | C91: 0 | D91: 0 | E91: 0 | F91: 0 | G91: 0 | H91: 0 | I91: 0 | J91: 0 | K91: 0 | L91: 0 | M91: 0 | N91: 0 | O91: 0 | P91: 0
A92: Device Replacement | B92: =SUM(B67:B68) -> 0 | C92: =SUM(C67:C68) -> 0 | D92: 0 | E92: 0 | F92: 0 | G92: 0 | H92: 0 | I92: 0 | J92: 0 | K92: 0 | L92: 0 | M92: 0 | N92: 0 | O92: 0 | P92: 0
A93: Infratructure | B93: =SUM(B69:B74) -> 0 | C93: 0 | D93: 0 | E93: 0 | F93: 0 | G93: 0 | H93: 0 | I93: 0 | J93: 0 | K93: 0 | L93: 0 | M93: 0 | N93: 0 | O93: 0 | P93: 0
A94: Security | B94: =SUM(B75) -> 0 | C94: 0 | D94: 0 | E94: 0 | F94: 0 | G94: 0 | H94: 0 | I94: 0 | J94: 0 | K94: 0 | L94: 0 | M94: 0 | N94: 0 | O94: 0 | P94: 0
A95: Smarter Networks | B95: =SUM(B76:B85) -> 0 | C95: 0 | D95: 0 | E95: 0 | F95: 0 | G95: 0 | H95: 0 | I95: 0 | J95: 0 | K95: 0 | L95: 0 | M95: 0 | N95: 0 | O95: 0 | P95: 0
B96: =SUM(B88:B95) -> 98.96396687 | C96: =SUM(C88:C95) -> 394.7451108 | D96: 170.4849211 | E96: 217.5901227 | F96: 373.6375129 | G96: 107.6954746 | H96: 52.78367701 | I96: 353.7023756 | J96: 139.5719473 | K96: 31.85220838 | L96: 214.2586389 | M96: 84.28699109 | N96: 896.5481345 | O96: 690.5829848 | P96: 208.5348157
A99: Recurrent | B99: 75.7623506 | C99: 394.7451108 | D99: 170.4849211 | E99: 217.5901227 | F99: 373.6375129 | G99: 107.6954746 | H99: 52.78367701 | I99: 353.7023756 | J99: 139.5719473 | K99: 31.85220838 | L99: 214.2586389 | M99: 84.28699109 | N99: 896.5481345 | O99: 690.5829848 | P99: 208.5348157
A100: Non-Recurrent | B100: 23.20161627 | C100: 0 | D100: 0 | E100: 0 | F100: 0 | G100: 0 | H100: 0 | I100: 0 | J100: 0 | K100: 0 | L100: 0 | M100: 0 | N100: 0 | O100: 0 | P100: 0
A101: Device Replacements | B101: 0 | C101: 0 | D101: 0 | E101: 0 | F101: 0 | G101: 0 | H101: 0 | I101: 0 | J101: 0 | K101: 0 | L101: 0 | M101: 0 | N101: 0 | O101: 0 | P101: 0
B102: =SUM(B99:B101)-B86 -> 0 | C102: =SUM(C99:C101)-C86 -> 0 | D102: 0 | E102: 0 | F102: 0 | G102: 0 | H102: 0 | I102: 0 | J102: 0 | K102: 0 | L102: 0 | M102: 0 | N102: 0 | O102: 0 | P102: 0
